fUSD/lending_fUSD_20240125
["ID","MTS","AMOUNT","RATE_DAILY","PERIOD"]
[312685621,1706145116652,-500.0,0.00051506,31]
[312685622,1706145116662,-500.0,0.00051506,31]
[312685623,1706145116672,-677.43,0.00051506,31]
[312685624,1706145116681,-500.0,0.00051506,31]
[312685625,1706145116691,-700.44,0.00051506,31]
[312685626,1706145116700,-500.0,0.00051506,31]
[312685627,1706145116709,-1060.9,0.00051506,31]
[312685628,1706145116718,-500.55,0.00051506,31]
[312685629,1706145116727,-500.0,0.00051506,31]
[312685630,1706145116736,-500.0,0.00051506,31]
[312685631,1706145116745,-547.24,0.00051506,31]
[312685632,1706145116755,-2280.94,0.00051506,31]
[312685633,1706145116765,-552.79,0.00051506,31]
[312685634,1706145116775,-1320.68,0.00051506,31]
[312685635,1706145116784,-500.0,0.00051506,31]
[312685636,1706145116794,-500.0,0.00051506,31]
[312685637,1706145116803,-500.0,0.00051506,31]
[312685638,1706145116813,-581.01,0.00051506,31]
[312685639,1706145116822,-712.54,0.00051506,31]
[312685640,1706145116832,-500.0,0.00051506,31]
[312685641,1706145116842,-1247.14,0.00051506,31]
[312685642,1706145116851,-500.0,0.00051506,31]
[312685643,1706145116861,-500.0,0.00051506,31]
[312685644,1706145116871,-608.94,0.00051506,31]
[312685645,1706145116880,-500.0,0.00051506,31]
[312685646,1706145116890,-693.55,0.00051506,31]
[312685647,1706145116899,-500.0,0.00051506,31]
[312685648,1706145116909,-552.3657483,0.00051506,31]
[312685649,1706145116918,-887.42,0.00051506,31]
[312685650,1706145116927,-500.0,0.00051506,31]
[312685651,1706145116937,-500.0,0.00051506,31]
[312685652,1706145116947,-633.04,0.00051506,31]
[312685653,1706145116957,-706.67,0.00051506,31]
[312685654,1706145116966,-500.0,0.00051506,31]
[312685655,1706145116975,-778.86,0.00051506,31]
[312685656,1706145116985,-4966.08,0.00051506,31]
[312685657,1706145116994,-639.06,0.00051506,31]
[312685658,1706145117003,-712.26,0.00051506,31]
[312685659,1706145117013,-1315.35,0.00051506,31]
[312685660,1706145117023,-500.0,0.00051506,31]
[312685661,1706145117033,-740.74,0.00051506,31]
[312685662,1706145117042,-564.19,0.00051506,31]
[312685663,1706145117052,-645.15,0.00051506,31]
[312685664,1706145117062,-500.0,0.00051506,31]
[312685665,1706145117072,-1073.61,0.00051506,31]
[312685666,1706145117081,-765.5,0.00051506,31]
[312685667,1706145117091,-500.0,0.00051506,31]
[312685668,1706145117102,-539.53,0.00051506,31]
[312685669,1706145117111,-751.1,0.00051506,31]
[312685670,1706145117121,-553.53,0.00051506,31]
[312685671,1706145117130,-500.0,0.00051506,31]
[312685672,1706145117140,-500.0,0.00051506,31]
[312685673,1706145117149,-537.1,0.00051506,31]
[312685674,1706145117159,-608.69,0.00051506,31]
[312685675,1706145117168,-649.59,0.00051506,31]
[312685676,1706145117178,-875.62,0.00051506,31]
[312685677,1706145117187,-3061.04,0.00051506,31]
[312685678,1706145117197,-769.1,0.00051506,31]
[312685679,1706145117207,-500.0,0.00051506,31]
[312685680,1706145117216,-1451.54,0.00051506,31]
[312685681,1706145117226,-500.0,0.00051506,31]
[312685682,1706145117235,-860.59,0.00051506,31]
[312685683,1706145117245,-500.0,0.00051506,31]
[312685684,1706145117254,-703.22,0.00051506,31]
[312685685,1706145117264,-992.0,0.00051506,31]
[312685686,1706145117273,-737.72,0.00051506,31]
[312685687,1706145117283,-658.3,0.00051506,31]
[312685688,1706145117292,-500.0,0.00051506,31]
[312685689,1706145117303,-500.0,0.00051506,31]
[312685690,1706145117312,-500.0,0.00051506,31]
[312685691,1706145117322,-500.0,0.00051506,31]
[312685692,1706145117332,-500.0,0.00051506,31]
[312685693,1706145117342,-500.0,0.00051506,31]
[312685694,1706145117352,-655.7,0.00051506,31]
[312685695,1706145117362,-599.29,0.00051506,31]
[312685696,1706145117371,-764.66,0.00051506,31]
[312685697,1706145117380,-500.0,0.00051506,31]
[312685698,1706145117390,-3144.18,0.00051506,31]
[312685699,1706145117399,-548.31,0.00051506,31]
[312685700,1706145117408,-673.27,0.00051506,31]
[312685701,1706145117418,-500.0,0.00051506,31]
[312685702,1706145117427,-765.11,0.00051506,31]
[312685703,1706145117437,-730.54,0.00051506,31]
[312685704,1706145117446,-500.0,0.00051506,31]
[312685705,1706145117456,-515.5,0.00051506,31]
[312685706,1706145117465,-500.0,0.00051506,31]
[312685707,1706145117475,-1295.4,0.00051506,31]
[312685708,1706145117484,-618.61,0.00051506,31]
[312685709,1706145117493,-388.16202862,0.00051506,31]
[312685710,1706145117503,-500.0,0.00051506,31]
[312685711,1706145117512,-792.67,0.00051506,31]
[312685712,1706145117521,-1247.69,0.00051506,31]
[312685713,1706145117532,-600.26,0.00051506,31]
[312685714,1706145117543,-500.0,0.00051506,31]
[312685715,1706145117552,-501.79,0.00051506,31]
[312685716,1706145117562,-678.69,0.00051506,31]
[312685717,1706145117571,-748.16,0.00051506,31]
[312685718,1706145117581,-689.9,0.00051506,31]
[312685719,1706145117590,-3710.41,0.00051506,31]
[312685720,1706145117601,-500.0,0.00051506,120]
[312685721,1706145117610,-1129.79,0.00051506,31]
[312685722,1706145117620,-500.0,0.00051506,31]
[312685723,1706145117630,-560.58,0.00051506,31]
[312685724,1706145117638,-500.0,0.00051506,31]
[312685725,1706145117648,-500.0,0.00051506,31]
[312685726,1706145117657,-2615.23,0.00051506,31]
[312685727,1706145117667,-536.66,0.00051506,31]
[312685728,1706145117676,-1281.32,0.00051506,31]
[312685729,1706145117686,-820.44,0.00051506,31]
[312685730,1706145117695,-500.0,0.00051506,31]
[312685731,1706145117705,-1013.31,0.00051506,31]
[312685732,1706145117714,-500.0,0.00051506,31]
[312685733,1706145117724,-571.87,0.00051506,31]
[312685734,1706145117733,-500.0,0.00051506,31]
[312685735,1706145117743,-605.74,0.00051506,31]
[312685736,1706145117752,-500.0,0.00051506,31]
[312685737,1706145117761,-500.0,0.00051506,31]
[312685738,1706145117771,-500.0,0.00051506,31]
[312685739,1706145117781,-500.0,0.00051506,31]
[312685740,1706145117790,-537.66,0.00051506,31]
[312685741,1706145117800,-756.21,0.00051506,31]
[312685742,1706145117809,-594.93,0.00051506,2]
[312685743,1706145117819,-500.0,0.00051506,31]
[312685744,1706145117828,-500.0,0.00051506,31]
[312685745,1706145117837,-724.25,0.00051506,31]
[312685746,1706145117847,-724.18,0.00051506,31]
[312685747,1706145117856,-2993.87,0.00051506,31]
[312685748,1706145117865,-618.86,0.00051506,31]
[312685749,1706145117875,-612.72,0.00051506,31]
[312685750,1706145117884,-500.0,0.00051506,31]
[312685751,1706145117894,-500.0,0.00051506,31]
[312685752,1706145117903,-500.0,0.00051506,31]
[312685753,1706145117913,-887.79,0.00051506,31]
[312685754,1706145117922,-514.92,0.00051506,31]
[312685755,1706145117932,-500.0,0.00051506,31]
[312685756,1706145117942,-1822.59,0.00051506,2]
[312685757,1706145117951,-500.0,0.00051506,31]
[312685758,1706145117961,-1226.02,0.00051506,31]
[312685759,1706145117971,-939.98,0.00051506,31]
[312685760,1706145117981,-500.0,0.00051506,31]
[312685761,1706145117990,-500.0,0.00051506,31]
[312685762,1706145117999,-500.0,0.00051506,31]
[312685763,1706145118009,-508.04,0.00051506,31]
[312685764,1706145118018,-500.0,0.00051506,31]
[312685765,1706145118028,-500.0,0.00051506,31]
[312685766,1706145118037,-681.8,0.00051506,31]
[312685767,1706145118046,-646.07,0.00051506,31]
[312685768,1706145118055,-151.0,0.00051506,14]
[312685769,1706145118064,-274.43993,0.00051506,14]
[312685770,1706145118074,-186.997498,0.00051506,14]
[312685771,1706145118083,-186.997498,0.00051506,14]
[312685772,1706145118093,-479.70925,0.00051506,14]
[312685773,1706145118104,-479.70925,0.00051506,14]
[312685774,1706145118114,-151.0,0.00051506,14]
[312685775,1706145118123,-151.0,0.00051506,14]
[312685776,1706145118133,-641.146266,0.00051506,14]
[312685777,1706145118142,-641.146266,0.00051506,14]
[312685778,1706145118152,-432.40353136,0.0005151,60]
[312685779,1706145118161,-1463.20744382,0.00051511,60]
[312685780,1706145118170,-150.26769463,0.00051513,60]
[312685781,1706145118180,-150.37716717,0.00051519,60]
[312685782,1706145118189,-1463.20744382,0.00051521,60]
[312685783,1706145118198,-150.15277208,0.00051529,60]
[312685784,1706145118208,-352.36495418,0.00051535,120]
[312685785,1706145118217,-156.43151779,0.00051539,60]
[312685786,1706145118226,-584.90819405,0.00051576,60]
[312685787,1706145118235,-1463.20744382,0.00051576,60]
[312685788,1706145118244,-154.34713497,0.00051581,60]
[312685789,1706145118253,-4998.49650352,0.00051593,6]
[312685790,1706145118262,-1463.20744382,0.00051599,60]
[312685791,1706145118271,-162.27493029,0.00051608,60]
[312685792,1706145118281,-151.72826734,0.00051646,30]
[312685793,1706145118290,-452.49609033,0.00051656,60]
[312685794,1706145118299,-150.0,0.00051675,30]
[312685795,1706145118308,-174.00895376,0.00051689,60]
[312685796,1706145118317,-176.58520058,0.00051695,60]
[312685797,1706145118326,-647.69,0.00051698,120]
[312685798,1706145118335,-2491.0,0.000517,117]
[312685799,1706145118344,-346.18,0.000517,7]
[312685800,1706145118354,-346.18,0.000517,7]
[312685801,1706145118363,-346.18,0.000517,7]
[312685802,1706145118372,-346.18,0.000517,7]
[312685803,1706145118381,-346.18,0.000517,7]
[312685804,1706145118390,-346.18,0.000517,7]
[312685805,1706145118400,-346.18,0.000517,7]
[312685806,1706145118409,-346.18,0.000517,7]
[312685807,1706145118418,-346.18,0.000517,7]
[312685808,1706145118427,-346.18,0.000517,7]
[312685809,1706145118436,-346.18,0.000517,7]
[312685810,1706145118445,-346.18,0.000517,7]
[312685811,1706145118454,-346.18,0.000517,7]
[312685812,1706145118463,-346.18,0.000517,7]
[312685813,1706145118472,-346.18,0.000517,7]
[312685814,1706145118481,-346.18,0.000517,7]
[312685815,1706145118490,-346.18,0.000517,7]
[312685816,1706145118499,-346.18,0.000517,7]
[312685817,1706145118508,-346.18,0.000517,7]
[312685818,1706145118517,-346.18,0.000517,7]
[312685819,1706145118527,-158.14,0.000517,4]
[312685820,1706145118536,-158.14,0.000517,4]
[312685821,1706145118546,-158.14,0.000517,4]
[312685822,1706145118556,-158.14,0.000517,4]
[312685823,1706145118566,-158.14,0.000517,4]
[312685824,1706145118575,-152.68,0.000517,7]
[312685825,1706145118585,-152.68,0.000517,7]
[312685826,1706145118594,-152.68,0.000517,7]
[312685827,1706145118604,-152.68,0.000517,7]
[312685828,1706145118613,-152.68,0.000517,7]
[312685829,1706145118623,-152.68,0.000517,7]
[312685830,1706145118633,-153.87365434,0.00051711,60]
[312685831,1706145118641,-584.90819405,0.00051722,60]
[312685832,1706145118650,-174.00895376,0.00051725,60]
[312685833,1706145118659,-1463.20744382,0.0005174,60]
[312685834,1706145118668,-233.38585,0.00051745,2]
[312685835,1706145118678,-3306.0713878,0.00051745,2]
[312685836,1706145118687,-1394.28546323,0.00051748,31]
[312685837,1706145118696,-432.40353136,0.00051768,60]
[312685838,1706145118705,-1777.81,0.0005178,5]
[312685839,1706145118714,-618.25473019,0.0005178,31]
[312685840,1706145118723,-500.0,0.0005178,31]
[312685841,1706145118732,-500.0,0.0005178,31]
[312685842,1706145118740,-500.0,0.0005178,31]
[312685843,1706145118750,-500.0,0.0005178,31]
[312685844,1706145118759,-431.82854998,0.0005178,31]
[312685845,1706145118768,-500.0,0.0005178,31]
[312685846,1706145118776,-500.0,0.0005178,31]
[312685847,1706145118785,-378.17613182,0.0005178,31]
[312685848,1706145118794,-571.81,0.0005178,31]
[312685849,1706145118803,-500.0,0.0005178,31]
[312685850,1706145118812,-500.0,0.0005178,31]
[312685851,1706145118821,-500.0,0.0005178,31]
[312685852,1706145118830,-1000.0,0.0005178,7]
[312685853,1706145118839,-500.0,0.0005178,31]
[312685854,1706145118849,-569.3,0.0005178,31]
[312685855,1706145118858,-500.0,0.0005178,31]
[312685856,1706145118867,-414.7467231,0.0005178,31]
[312685857,1706145118876,-500.0,0.0005178,31]
[312685858,1706145118886,-500.0,0.0005178,31]
[312685859,1706145118894,-500.0,0.0005178,31]
[312685860,1706145118903,-500.0,0.0005178,31]
[312685861,1706145118912,-607.8,0.0005178,31]
[312685862,1706145118922,-500.0,0.0005178,31]
[312685863,1706145118930,-500.0,0.0005178,31]
[312685864,1706145118940,-500.0,0.0005178,31]
[312685865,1706145118949,-510.64,0.0005178,31]
[312685866,1706145118958,-294.43247548,0.0005178,31]
[312685867,1706145118967,-500.0,0.0005178,31]
[312685868,1706145118976,-500.0,0.0005178,31]
[312685869,1706145118986,-500.0,0.0005178,31]
[312685870,1706145118995,-500.0,0.0005178,31]
[312685871,1706145119003,-563.82,0.0005178,31]
[312685872,1706145119013,-500.0,0.0005178,31]
[312685873,1706145119022,-510.96,0.0005178,31]
[312685874,1706145119031,-500.0,0.0005178,31]
[312685875,1706145119041,-500.0,0.0005178,31]
[312685876,1706145119050,-545.8,0.0005178,31]
[312685877,1706145119059,-500.0,0.0005178,31]
[312685878,1706145119068,-547.01,0.0005178,31]
[312685879,1706145119077,-500.0,0.0005178,31]
[312685880,1706145119086,-500.0,0.0005178,31]
[312685881,1706145119096,-500.0,0.0005178,31]
[312685882,1706145119105,-572.12845964,0.0005178,31]
[312685883,1706145119114,-500.0,0.0005178,31]
[312685884,1706145119123,-500.0,0.0005178,31]
[312685885,1706145119132,-500.0,0.0005178,31]
[312685886,1706145119141,-500.0,0.0005178,31]
[312685887,1706145119150,-665.93,0.0005178,31]
[312685888,1706145119160,-500.0,0.0005178,31]
[312685889,1706145119169,-500.0,0.0005178,31]
[312685890,1706145119178,-1000.0,0.0005178,7]
[312685891,1706145119188,-500.0,0.0005178,31]
[312685892,1706145119197,-500.0,0.0005178,31]
[312685893,1706145119207,-500.0,0.0005178,31]
[312685894,1706145119217,-500.0,0.0005178,31]
[312685895,1706145119226,-419.22123063,0.0005178,31]
[312685896,1706145119235,-500.0,0.0005178,31]
[312685897,1706145119244,-500.0,0.0005178,31]
[312685898,1706145119254,-4118.15,0.0005178,15]
[312685899,1706145119263,-500.0,0.0005178,31]
[312685900,1706145119273,-523.13,0.0005178,31]
[312685901,1706145119282,-937.73,0.0005178,2]
[312685902,1706145119292,-1968.51,0.0005178,31]
[312685903,1706145119301,-500.0,0.0005178,31]
[312685904,1706145119311,-500.0,0.0005178,31]
[312685905,1706145119320,-539.3,0.0005178,31]
[312685906,1706145119329,-500.0,0.0005178,31]
[312685907,1706145119339,-500.0,0.0005178,31]
[312685908,1706145119349,-500.0,0.0005178,31]
[312685909,1706145119358,-4141.1,0.0005178,31]
[312685910,1706145119367,-500.0,0.0005178,31]
[312685911,1706145119376,-500.0,0.0005178,31]
[312685912,1706145119386,-500.0,0.0005178,31]
[312685913,1706145119395,-500.0,0.0005178,31]
[312685914,1706145119404,-500.0,0.0005178,31]
[312685915,1706145119414,-500.0,0.0005178,31]
[312685916,1706145119422,-500.0,0.0005178,31]
[312685917,1706145119432,-500.0,0.0005178,31]
[312685918,1706145119440,-500.0,0.0005178,31]
[312685919,1706145119450,-500.0,0.0005178,2]
[312685920,1706145119459,-792.61,0.0005178,31]
[312685921,1706145119468,-500.0,0.0005178,31]
[312685922,1706145119477,-500.0,0.0005178,31]
[312685923,1706145119486,-500.0,0.0005178,31]
[312685924,1706145119495,-500.0,0.0005178,31]
[312685925,1706145119504,-500.0,0.0005178,2]
[312685926,1706145119513,-500.0,0.0005178,31]
[312685927,1706145119522,-500.0,0.0005178,31]
[312685928,1706145119531,-702.69,0.0005178,31]
[312685929,1706145119541,-500.0,0.0005178,31]
[312685930,1706145119551,-500.0,0.0005178,31]
[312685931,1706145119560,-500.0,0.0005178,31]
[312685932,1706145119569,-500.0,0.0005178,31]
[312685933,1706145119578,-668.66,0.0005178,31]
[312685934,1706145119587,-500.0,0.0005178,31]
[312685935,1706145119597,-619.19,0.0005178,31]
[312685936,1706145119606,-500.0,0.0005178,31]
[312685937,1706145119615,-953.39,0.0005178,31]
[312685938,1706145119624,-500.0,0.0005178,31]
[312685939,1706145119634,-500.0,0.0005178,31]
[312685940,1706145119643,-500.0,0.0005178,31]
[312685941,1706145119652,-500.0,0.0005178,31]
[312685942,1706145119662,-500.0,0.0005178,31]
[312685943,1706145119671,-500.0,0.0005178,31]
[312685944,1706145119680,-500.0,0.0005178,31]
[312685945,1706145119689,-500.0,0.0005178,31]
[312685946,1706145119698,-500.0,0.0005178,31]
[312685947,1706145119708,-524.2,0.0005178,31]
[312685948,1706145119717,-500.0,0.0005178,31]
[312685949,1706145119726,-500.0,0.0005178,31]
[312685950,1706145119736,-500.0,0.0005178,31]
[312685951,1706145119745,-781.79,0.0005178,31]
[312685952,1706145119754,-500.0,0.0005178,31]
[312685953,1706145119763,-500.0,0.0005178,31]
[312685954,1706145119773,-718.1,0.0005178,31]
[312685955,1706145119783,-500.0,0.0005178,31]
[312685956,1706145119793,-558.82,0.0005178,31]
[312685957,1706145119802,-500.0,0.0005178,31]
[312685958,1706145119811,-500.0,0.0005178,31]
[312685959,1706145119820,-500.0,0.0005178,31]
[312685960,1706145119830,-500.0,0.0005178,31]
[312685961,1706145119839,-500.0,0.0005178,31]
[312685962,1706145119850,-500.0,0.0005178,31]
[312685963,1706145119859,-500.0,0.0005178,31]
[312685964,1706145119868,-500.0,0.0005178,31]
[312685965,1706145119878,-566.38110487,0.0005178,31]
[312685966,1706145119887,-500.0,0.0005178,31]
[312685967,1706145119897,-719.02,0.0005178,31]
[312685968,1706145119906,-500.0,0.0005178,31]
[312685969,1706145119915,-500.0,0.0005178,31]
[312685970,1706145119924,-530.57,0.0005178,31]
[312685971,1706145119933,-590.77,0.0005178,31]
[312685972,1706145119942,-500.0,0.0005178,31]
[312685973,1706145119951,-500.0,0.0005178,31]
[312685974,1706145119961,-500.0,0.0005178,31]
[312685975,1706145119970,-500.0,0.0005178,31]
[312685976,1706145119979,-1141.79,0.0005178,31]
[312685977,1706145119988,-167.00302585,0.0005178,31]
[312685978,1706145119997,-500.0,0.0005178,31]
[312685979,1706145120007,-626.76,0.0005178,31]
[312685980,1706145120016,-500.0,0.0005178,31]
[312685981,1706145120026,-500.0,0.0005178,31]
[312685982,1706145120035,-500.0,0.0005178,31]
[312685983,1706145120044,-500.0,0.0005178,31]
[312685984,1706145120054,-500.0,0.0005178,31]
[312685985,1706145120063,-500.0,0.0005178,31]
[312685986,1706145120073,-500.0,0.0005178,31]
[312685987,1706145120082,-500.0,0.0005178,31]
[312685988,1706145120091,-500.0,0.0005178,31]
[312685989,1706145120101,-529.72,0.0005178,31]
[312685990,1706145120111,-500.0,0.0005178,31]
[312685991,1706145120120,-502.97,0.0005178,31]
[312685992,1706145120129,-500.0,0.0005178,31]
[312685993,1706145120139,-992.14,0.0005178,120]
[312685994,1706145120148,-500.0,0.0005178,31]
[312685995,1706145120158,-500.0,0.0005178,31]
[312685996,1706145120167,-500.0,0.0005178,31]
[312685997,1706145120176,-500.0,0.0005178,31]
[312685998,1706145120186,-500.0,0.0005178,31]
[312685999,1706145120195,-500.0,0.0005178,31]
[312686000,1706145120205,-500.0,0.0005178,31]
[312686001,1706145120215,-500.0,0.0005178,31]
[312686002,1706145120224,-500.0,0.0005178,31]
[312686003,1706145120234,-500.0,0.0005178,31]
[312686004,1706145120244,-500.0,0.0005178,31]
[312686005,1706145120254,-500.0,0.0005178,31]
[312686006,1706145120263,-369.16432976,0.0005178,31]
[312686007,1706145120273,-697.72,0.0005178,2]
[312686008,1706145120283,-500.0,0.0005178,31]
[312686009,1706145120292,-500.0,0.0005178,31]
[312686010,1706145120302,-796.46,0.0005178,31]
[312686011,1706145120313,-500.0,0.0005178,31]
[312686012,1706145120509,-500.0,0.0005178,31]
[312686013,1706145120519,-465.70750771,0.0005178,31]
[312686014,1706145120528,-500.0,0.0005178,31]
[312686015,1706145120537,-500.0,0.0005178,31]
[312686016,1706145120549,-502.99,0.0005178,31]
[312686017,1706145120558,-500.0,0.0005178,31]
[312686018,1706145120568,-500.0,0.0005178,31]
[312686019,1706145120577,-1084.63,0.0005178,31]
[312686020,1706145120587,-500.0,0.0005178,31]
[312686021,1706145120597,-500.0,0.0005178,31]
[312686022,1706145120606,-500.0,0.0005178,31]
[312686023,1706145120615,-500.0,0.0005178,31]
[312686024,1706145120625,-1233.91,0.0005178,7]
[312686025,1706145120634,-500.0,0.0005178,31]
[312686026,1706145120642,-500.0,0.0005178,31]
[312686027,1706145120651,-500.0,0.0005178,31]
[312686028,1706145120661,-500.0,0.0005178,31]
[312686029,1706145120670,-500.0,0.0005178,31]
[312686030,1706145120679,-500.0,0.0005178,31]
[312686031,1706145120688,-500.0,0.0005178,14]
[312686032,1706145120698,-500.0,0.0005178,31]
[312686033,1706145120707,-500.0,0.0005178,31]
[312686034,1706145120717,-500.0,0.0005178,31]
[312686035,1706145120726,-500.0,0.0005178,31]
[312686036,1706145120735,-500.0,0.0005178,31]
[312686037,1706145120744,-500.0,0.0005178,31]
[312686038,1706145120753,-500.0,0.0005178,31]
[312686039,1706145120762,-500.0,0.0005178,31]
[312686040,1706145120772,-669.25,0.0005178,20]
[312686041,1706145120781,-500.0,0.0005178,31]
[312686042,1706145120791,-414.87740156,0.0005178,31]
[312686043,1706145120799,-500.0,0.0005178,31]
[312686044,1706145120809,-500.0,0.0005178,31]
[312686045,1706145120818,-500.0,0.0005178,31]
[312686046,1706145120827,-1309.13,0.0005178,7]
[312686047,1706145120836,-500.0,0.0005178,31]
[312686048,1706145120846,-474.65326422,0.0005178,31]
[312686049,1706145120855,-500.0,0.0005178,31]
[312686050,1706145120864,-500.0,0.0005178,31]
[312686051,1706145120874,-520.3,0.0005178,31]
[312686052,1706145120883,-646.73158928,0.0005178,31]
[312686053,1706145120893,-500.0,0.0005178,31]
[312686054,1706145120902,-500.0,0.0005178,31]
[312686055,1706145120912,-500.0,0.0005178,31]
[312686056,1706145120921,-983.18,0.0005178,31]
[312686057,1706145120930,-500.0,0.0005178,31]
[312686058,1706145120939,-500.0,0.0005178,31]
[312686059,1706145120948,-523.88,0.0005178,31]
[312686060,1706145120957,-500.0,0.0005178,31]
[312686061,1706145120967,-500.0,0.0005178,31]
[312686062,1706145120977,-485.06554182,0.0005178,31]
[312686063,1706145120987,-373.77639618,0.0005178,31]
[312686064,1706145120997,-1157.14,0.0005178,31]
[312686065,1706145121007,-500.0,0.0005178,31]
[312686066,1706145121016,-500.0,0.0005178,31]
[312686067,1706145121027,-500.0,0.0005178,31]
[312686068,1706145121036,-500.0,0.0005178,31]
[312686069,1706145121045,-500.0,0.0005178,31]
[312686070,1706145121055,-594.98,0.0005178,31]
[312686071,1706145121064,-500.0,0.0005178,31]
[312686072,1706145121073,-500.0,0.0005178,31]
[312686073,1706145121082,-500.0,0.0005178,31]
[312686074,1706145121091,-500.0,0.0005178,31]
[312686075,1706145121101,-500.0,0.0005178,31]
[312686076,1706145121110,-621.48,0.0005178,31]
[312686077,1706145121120,-413.66798453,0.0005178,31]
[312686078,1706145121129,-659.17,0.0005178,31]
[312686079,1706145121138,-500.0,0.0005178,31]
[312686080,1706145121148,-500.0,0.0005178,31]
[312686081,1706145121157,-701.09,0.0005178,31]
[312686082,1706145121166,-500.0,0.0005178,31]
[312686083,1706145121176,-1697.01,0.0005178,31]
[312686084,1706145121186,-500.0,0.0005178,31]
[312686085,1706145121195,-500.0,0.0005178,31]
[312686086,1706145121204,-500.0,0.0005178,31]
[312686087,1706145121213,-500.0,0.0005178,31]
[312686088,1706145121222,-500.0,0.0005178,31]
[312686089,1706145121232,-500.0,0.0005178,31]
[312686090,1706145121241,-500.0,0.0005178,31]
[312686091,1706145121251,-523.57,0.0005178,31]
[312686092,1706145121260,-500.0,0.0005178,31]
[312686093,1706145121269,-728.06,0.0005178,31]
[312686094,1706145121279,-500.0,0.0005178,31]
[312686095,1706145121288,-511.53,0.0005178,31]
[312686096,1706145121298,-500.0,0.0005178,31]
[312686097,1706145121307,-500.0,0.0005178,31]
[312686098,1706145121317,-500.0,0.0005178,31]
[312686099,1706145121327,-500.0,0.0005178,31]
[312686100,1706145121336,-665.87,0.0005178,31]
[312686101,1706145121346,-698.55,0.0005178,31]
[312686102,1706145121355,-500.0,0.0005178,31]
[312686103,1706145121365,-535.75,0.0005178,31]
[312686104,1706145121374,-500.0,0.0005178,31]
[312686105,1706145121383,-500.0,0.0005178,31]
[312686106,1706145121392,-500.0,0.0005178,31]
[312686107,1706145121401,-973.03,0.0005178,2]
[312686108,1706145121411,-3653.94,0.0005178,31]
[312686109,1706145121420,-944.79,0.0005178,31]
[312686110,1706145121429,-500.0,0.0005178,31]
[312686111,1706145121439,-500.0,0.0005178,31]
[312686112,1706145121448,-500.0,0.0005178,31]
[312686113,1706145121457,-517.29,0.0005178,31]
[312686114,1706145121466,-766.32,0.0005178,31]
[312686115,1706145121475,-578.45,0.0005178,31]
[312686116,1706145121485,-500.0,0.0005178,31]
[312686117,1706145121494,-500.0,0.0005178,31]
[312686118,1706145121503,-500.0,0.0005178,31]
[312686119,1706145121512,-500.0,0.0005178,31]
[312686120,1706145121521,-571.27,0.0005178,31]